Cogmind - Beta 13 @@@ ROGUE MODE // 2024.04.12 @ 17:25:53 Player: BrainTooSmol Result: Destroyed by G-67 Veteran with Plasma Rifle Performance ------------- Evolutions (7) 3500 Regions Visited (22) 4400 Robots Destroyed (112) 560 Value Destroyed (3740) 3740 Prototype IDs (32) 640 Alien Tech Used (2) 400 Bonus (5241) 5241 TOTAL SCORE: 18481 Bonus ------- High Alert Combat Kills 115 Follower Combat Kills 1402 Network Hubs Disabled 400 Met Data Miner 300 Met Zhirov 300 Built Enhanced Grunts 300 A7 Reached Mainframe 300 Hacked Protovariant 500 Acquired SGEMP 2000 Friendly Fire -376 Cogmind --------- Core Integrity 0/1300 Matter 265/300 Energy 27/100 System Corruption 15% Temperature Cool (0) Movement Flying (40) Location -3/Testing Parts ------- > --- POWER (2) -------- (None) > --- PROPULSION (6) --- Enhanced Biometal Leg Improved Diametric Drive > --- UTILITY (11) ----- 2N-1CE's Frost Array Enhanced Optical Array ECM Suite Improved Hacking Suite > --- WEAPON (2) ------- (None) > --- INVENTORY (5) ---- Particle Reactor Light Particle Reactor Advanced Force Field SGEMP Prototype Peak State ------------ > --- POWER ------------ Micro Fission Core Particle Reactor > --- PROPULSION ------- Improved Cesium-ion Thruster Improved Cesium-ion Thruster Field Propulsion Drive Field Propulsion Drive Field Propulsion Array > --- UTILITY ---------- Medium Storage Unit Machine Analyzer Enhanced Optical Array Advanced Sensor Array Advanced Signal Interpreter Advanced Transmission Jammer Improved Hacking Suite Improved System Shield Advanced System Shield > --- WEAPON ----------- Autogun Phasing Sabre > --- INVENTORY -------- Light Quantum Reactor Light Quantum Reactor Improved Cesium-ion Thruster Nuclear Pulse Array Advanced ECM Suite Cloaking Device Improved Hacking Suite Improved Hacking Suite Advanced Hacking Suite [Rating: 106] Favorites ----------- Power Backup Power VII Engine Light Angular Momentum Engine Power Core Backup Power VII Reactor Particle Reactor Propulsion Improved Cesium-ion Thruster Treads Medium Treads Leg Aluminum Leg Flight Unit Improved Cesium-ion Thruster Utility Advanced System Shield Device Advanced Sensor Array Storage Medium Storage Unit Processor Machine Analyzer Hackware Advanced System Shield Protection Hardened Heavy Armor Plating Weapon Shotgun Energy Gun Medium Laser Energy Cannon Neutron Cannon Ballistic Gun Shotgun Launcher Improved Proton Missile Launcher Impact Weapon Makeshift Hammer Slashing Weapon Chainsword Build | -11 -10 -10 -9 -8 -7 -6 -6 -6 -6 -5 -5 -5 -5 -5 -4 -4 -4 -4 -4 -4 -3 -3 ------- Run | Yrd Mat Min Mat Mat Fac Fac Low Low Dat Pro Fac Upp Upp Zhi Pro Fac Ext Cet Arc Hub Res Tes Slots Evolved 14 | . . . 2 2 2 2 . . . . 2 . . . . 2 . . . . 2 . Power 1 | . . . . . . 1 . . . . . . . . . . . . . . . . Propulsion 4 | . . . 2 . 2 . . . . . . . . . . . . . . . . . Utility 9 | . . . . 2 . 1 . . . . 2 . . . . 2 . . . . 2 . Weapon . | . . . . . . . . . . . . . . . . . . . . . . . Parts Attached 149 | 6 3 2 16 21 12 17 1 . . . 3 1 . 6 . 9 9 3 3 15 7 15 Power 19 | 1 1 1 1 2 1 3 . . . . . . . . . 2 3 . 1 3 . . Engine 5 | 1 1 1 . . . 1 . . . . . . . . . 1 . . . . . . Core 9 | . . . 1 2 1 2 . . . . . . . . . 1 1 . . 1 . . Reactor 5 | . . . . . . . . . . . . . . . . . 2 . 1 2 . . Propulsion 54 | 2 . 1 10 10 6 2 . . . . 1 . . 2 . 1 3 1 . 5 3 7 Treads 3 | . . . . . . . . . . . . . . . . . . . . . 1 2 Leg 26 | 2 . 1 10 9 . . . . . . . . . 1 . . . . . . 1 2 Wheel . | . . . . . . . . . . . . . . . . . . . . . . . Hover . | . . . . . . . . . . . . . . . . . . . . . . . Flight 25 | . . . . 1 6 2 . . . . 1 . . 1 . 1 3 1 . 5 1 3 Utility 40 | 1 1 . . 5 4 5 . . . . 1 1 . 4 . 6 1 . 2 . 4 5 Device 20 | . 1 . . 3 1 2 . . . . . 1 . 3 . 2 . . . . 2 5 Storage 2 | 1 . . . . 1 . . . . . . . . . . . . . . . . . Processor 6 | . . . . . 2 2 . . . . 1 . . . . . 1 . . . . . Hackware 10 | . . . . . . 1 . . . . . . . 1 . 4 . . 2 . 2 . Protection 2 | . . . . 2 . . . . . . . . . . . . . . . . . . Artifact . | . . . . . . . . . . . . . . . . . . . . . . . Weapon 36 | 2 1 . 5 4 1 7 1 . . . 1 . . . . . 2 2 . 7 . 3 Energy Gun 5 | 2 1 . 2 . . . . . . . . . . . . . . . . . . . Energy Cannon 1 | . . . . . . . . . . . . . . . . . . . . 1 . . Ballistic Gun 9 | . . . . 2 . 2 . . . . . . . . . . . . . 5 . . Ballistic Cannon . | . . . . . . . . . . . . . . . . . . . . . . . Launcher 9 | . . . 1 1 1 5 . . . . 1 . . . . . . . . . . . Special Weapon . | . . . . . . . . . . . . . . . . . . . . . . . Impact Weapon 2 | . . . 2 . . . . . . . . . . . . . . . . . . . Slashing Weapon 10 | . . . . 1 . . 1 . . . . . . . . . 2 2 . 1 . 3 Piercing Weapon . | . . . . . . . . . . . . . . . . . . . . . . . Special Melee Weapon . | . . . . . . . . . . . . . . . . . . . . . . . Unidentified Prototypes 13 | . . . 1 1 . . . . . . . . . 4 . . . . . . 1 6 Corrupted Parts 1 | . . . . . . . . . . . . . . . . . . . . 1 . . System Corruption 10 | . . . . . . . . . . . . . . . . . . . . 10 . . Parts Lost 50 | . . 1 3 2 1 5 . . . . . 1 . . . 1 8 . . 14 . 14 Power 7 | . . 1 . . . 2 . . . . . . . . . . 2 . . 2 . . Propulsion 21 | . . . 1 2 . 1 . . . . . . . . . . 3 . . 8 . 6 Utility 15 | . . . . . 1 1 . . . . . 1 . . . . 2 . . 3 . 7 Weapon 7 | . . . 2 . . 1 . . . . . . . . . 1 1 . . 1 . 1 Highest Loss Streak 13 | . . 1 1 1 1 1 . . . . . 1 . . . 1 3 . . 13 . 9 To Critical Strikes . | . . . . . . . . . . . . . . . . . . . . . . . Average Slot Usage (%) 83 | . 93 100 97 87 88 86 87 93 93 93 84 88 88 90 94 93 82 83 82 83 32 45 Engine 3 | . 14 14 7 . . 1 6 6 6 6 5 5 5 5 5 4 2 . . . . . Core 4 | . . . 3 8 6 11 6 6 6 6 5 5 5 5 5 5 4 . . 4 . . Reactor 1 | . . . . . . . . . . . . . . . . . 3 10 6 4 . . Leg 12 | . 28 28 43 35 5 . . . . . . . . . . . . . . . . 2 Flight 17 | . . . . . 38 40 40 40 40 40 29 29 29 29 29 26 25 26 26 24 1 4 Device 9 | . 7 14 11 8 5 6 13 13 13 13 11 11 11 9 11 10 10 10 10 9 7 7 Storage 6 | . 14 14 11 9 7 6 6 6 6 6 5 5 5 5 5 5 5 5 5 4 . . Processor 7 | . . . . . 11 11 6 6 6 6 11 11 11 11 11 10 10 15 15 14 9 7 Hackware 8 | . . . . . . 5 6 6 6 6 5 5 5 9 11 20 15 10 12 14 12 13 Protection 1 | . . . . 7 1 . . . . . . . . . . . . . . . . . Energy Gun 3 | . 28 28 12 . . . . . . . . . . . . . . . . . . . Ballistic Gun 2 | . . . . 13 6 . . . . . . . . . . . . . . . . . Impact Weapon 1 | . . . 6 2 . . . . . . . . . . . . . . . . . . Slashing Weapon 2 | . . . . 1 . . 1 6 6 6 5 5 5 5 5 5 3 4 5 4 . . Naked Turns . | . . . . . . . . . . . . . . . . . . . . . . . Heaviest Build 40 | 12 16 14 18 37 37 29 28 28 28 28 36 36 36 36 36 36 40 40 40 39 2 7 Greatest Support 72 | 20 20 20 60 72 72 36 36 36 36 36 37 37 37 37 37 37 39 40 40 41 28 35 Greatest Overweight (x) 3 | 3 . . . . . . . . . . . . . 1 . . 1 . . . . . Average Overweight (x) . | 1 . . . . . . . . . . . . . . . . . . . . . . Largest Inventory Capacity 10 | 8 8 8 8 8 10 10 10 10 10 10 10 10 10 10 10 10 10 10 10 10 5 5 Average Capacity 8 | 6 8 8 8 8 9 10 10 10 10 10 10 10 10 10 10 10 10 10 10 9 5 5 Most Carried 10 | 2 4 5 8 8 10 10 9 8 8 8 9 8 8 9 8 10 10 10 10 10 5 5 Average Carried 7 | . 2 4 7 7 8 9 8 8 8 8 8 8 8 8 8 8 7 9 9 9 3 4 Final Capacity 10 | 8 8 8 8 8 10 10 10 10 10 10 10 10 10 10 10 10 10 10 10 5 5 5 Final Carried 10 | 1 4 5 8 8 10 9 8 8 8 8 8 8 8 8 8 9 10 9 10 5 3 5 Class Distribution -------------------- 29% | Hacker-Ninja 26% | Mutant 16% | Sprinter 9% | Scavenger-Mutant 5% | Hacker-Scout 4% | Hacker-Mutant 3% | Commander-Ninja Dominant Class ---------------- Mutant | -10/Materials Mutant | -10/Mines Scavenger-Mutant | -9/Materials Mutant | -8/Materials Sprinter | -7/Factory Sprinter | -6/Factory Sprinter | -6/Lower Caves Sprinter | -6/Lower Caves Sprinter | -6/Data Miner Sprinter | -5/Proximity Caves Ninja | -5/Factory Ninja | -5/Upper Caves Ninja | -5/Upper Caves Hacker-Ninja | -5/Zhirov Hacker-Ninja | -4/Proximity Caves Hacker-Ninja | -4/Factory Hacker-Ninja | -4/Extension Commander-Ninja | -4/Cetus Hacker-Ninja | -4/Archives Hacker-Ninja | -4/Hub_04(d) Hacker-Scout | -3/Research Hacker-Mutant | -3/Testing Resources | -11 -10 -10 -9 -8 -7 -6 -6 -6 -6 -5 -5 -5 -5 -5 -4 -4 -4 -4 -4 -4 -3 -3 ----------- Run | Yrd Mat Min Mat Mat Fac Fac Low Low Dat Pro Fac Upp Upp Zhi Pro Fac Ext Cet Arc Hub Res Tes Matter Collected 2131 | 199 91 20 168 523 96 198 29 . . 96 35 20 41 . 10 155 80 45 35 164 70 56 Remotely . | . . . . . . . . . . . . . . . . . . . . . . . Salvage Created 4428 | . 233 94 1050 835 246 349 . . . . 35 . . . . 155 438 . 253 740 . . Parts 244 | . 15 3 39 55 17 29 . . . . . . . . . 7 28 . 21 30 . . Haulers Intercepted 5 | . . . 2 1 . . . . . . . . . . . . . . . 2 . . Recyclers Shooed . | . . . . . . . . . . . . . . . . . . . . . . . Parts Field Recycled . | . . . . . . . . . . . . . . . . . . . . . . . Retrieved Matter . | . . . . . . . . . . . . . . . . . . . . . . . Parts Self-Destructed 7 | . . . . . . . . . . 7 . . . . . . . . . . . . Prevented . | . . . . . . . . . . . . . . . . . . . . . . . Kills | -11 -10 -10 -9 -8 -7 -6 -6 -6 -6 -5 -5 -5 -5 -5 -4 -4 -4 -4 -4 -4 -3 -3 ------- Run | Yrd Mat Min Mat Mat Fac Fac Low Low Dat Pro Fac Upp Upp Zhi Pro Fac Ext Cet Arc Hub Res Tes Combat Hostiles Destroyed 73 | . 5 2 25 21 1 8 . . . . . . . . . 2 6 . 1 2 . . Melee 23 | . . . 7 5 . . . . . . . . . . . 2 6 . 1 2 . . Guns 32 | . 5 2 11 13 . 1 . . . . . . . . . . . . . . . . AOE 10 | . . . . 3 . 7 . . . . . . . . . . . . . . . . Classes Destroyed 13 | . 2 . 7 . 2 . . . . . . . . . . 1 1 . . . . . Worker 3 | . . . 1 . . 2 . . . . . . . . . . . . . . . . Builder 5 | . . . . . 1 1 . . . . . . . . . . . . . 3 . . Hauler 5 | . . . 2 1 . . . . . . . . . . . . . . . 2 . . Recycler 2 | . . . . . 1 . . . . . . . . . . . . . . 1 . . Operator 8 | . . . 1 . 1 1 . . . . . . . . . . . . 5 . . . Drone 1 | . . . . . . . . . . . . . . . . . 1 . . . . . Watcher 16 | . 1 . 3 2 2 1 . . . . 1 . . . . 1 1 . . 4 . . Swarmer 19 | . . . 3 7 . 8 . . . . . . . . . . . . . 1 . . Grunt 33 | . 5 2 16 6 1 . . . . . . . . . . . 3 . . . . . Brawler 1 | . . . 1 . . . . . . . . . . . . . . . . . . . Duelist 2 | . . . 1 1 . . . . . . . . . . . . . . . . . . Sentry 15 | . . . 4 7 . . . . . . . . . . . . 2 . 1 1 . . Programmer 2 | . . . . . . . . . . . . . . . . 2 . . . . . . Enhanced Grunt 1 | . . . . . . . . . . . . . . . . . . . . 1 . . Best Kill Streak 7 | . 2 2 4 7 2 5 . . . . 1 . . . . 1 2 . 4 4 . . Combat Bots Only 7 | . 2 2 5 7 1 3 . . . . . . . . . 1 2 . 1 1 . . Max Kills in Single Turn 3 | . 1 1 2 3 2 2 . . . . 1 . . . . 1 1 . 1 3 . . Gunslinging 1 | . . . 1 . . . . . . . . . . . . . . . . . . . Exploded 3 | . . . . 3 . 2 . . . . . . . . . . . . . . . . Melee 1 | . . . 1 1 . . . . . . . . . . . 1 1 . 1 1 . . Uniques/NPCs Destroyed . | . . . . . . . . . . . . . . . . . . . . . . . Combat | -11 -10 -10 -9 -8 -7 -6 -6 -6 -6 -5 -5 -5 -5 -5 -4 -4 -4 -4 -4 -4 -3 -3 -------- Run | Yrd Mat Min Mat Mat Fac Fac Low Low Dat Pro Fac Upp Upp Zhi Pro Fac Ext Cet Arc Hub Res Tes Hostile Shots Fired 822 | . 18 4 104 79 36 113 3 . . 6 1 4 . . . 41 32 2 5 79 10 285 Missed 374 | . 3 . 24 22 20 67 1 . . 3 . 1 . . . 24 19 . 4 34 6 146 Damage Taken 8725 | . 186 84 993 807 175 625 44 . . 60 17 56 . . . 341 483 69 27 1837 110 2811 Core 2962 | . 37 17 172 85 40 186 25 . . 19 . . . . . 130 140 . . 809 81 1221 Absorbed by Shields 47 | . . . . . . . . . . . . . . . . . 30 10 . . . 7 Regen/Repaired (Parts) 145 | . . . . 37 . . . . . . . . . . . 108 . . . . . . Core Remaining (%) 72 | 100 . 78 57 84 94 . . . . 72 . . . . 92 . . . . 6 . . Volleys Fired 123 | . 16 5 35 35 13 13 . . . . 1 . . . . . . . . 5 . . Largest 2 | . 2 2 2 2 2 2 . . . . 1 . . . . . . . . 1 . . Hottest 121 | . 115 115 121 46 46 56 . . . . 43 . . . . . . . . 90 . . Shots Fired 219 | . 32 10 69 70 16 16 . . . . 1 . . . . . . . . 5 . . Gun 193 | . 32 10 69 69 6 4 . . . . . . . . . . . . . 3 . . Cannon 2 | . . . . . . . . . . . . . . . . . . . . 2 . . Launcher 24 | . . . . 1 10 12 . . . . 1 . . . . . . . . . . . Special . | . . . . . . . . . . . . . . . . . . . . . . . Kinetic 82 | . . . . 69 6 4 . . . . . . . . . . . . . 3 . . Thermal 113 | . 32 10 69 . . . . . . . . . . . . . . . . 2 . . Explosive . | . . . . . . . . . . . . . . . . . . . . . . . Electromagnetic 24 | . . . . 1 10 12 . . . . 1 . . . . . . . . . . . Robot Hit Streak 17 | . 7 9 17 8 5 3 . . . . 4 . . . . . . . . 5 . . Robot Miss Streak 9 | . 2 . 3 3 3 9 . . . . . . . . . . . . . . . . Penetration Max . | . . . . . . . . . . . . . . . . . . . . . . . Secondary Targets 3 | . . . 2 1 . . . . . . . . . . . . . . . . . . Max Gunslinging Chain 1 | . . . 1 1 . . . . . . . . . . . . . . . . . . Shots Hit Robots 291 | . 23 9 106 64 9 8 . . . . 1 . . . . 12 21 2 9 26 . 1 Core Hits 143 | . 12 5 24 42 11 15 . . . . . . . . . 5 7 . 4 18 . . Critical Kills . | . . . . . . . . . . . . . . . . . . . . . . . Critical Parts Destroyed 5 | . . . 5 . . . . . . . . . . . . . . . . . . . Critical Strikes 23 | . 3 . 9 . . . . . . . . . . . . 3 5 . . 3 . . Burn 5 | . 3 . 2 . . . . . . . . . . . . . . . . . . . Smash 7 | . . . 7 . . . . . . . . . . . . . . . . . . . Sever 11 | . . . . . . . . . . . . . . . . 3 5 . . 3 . . Melee Attacks 224 | . . . 78 21 . . . . . 2 3 . . . 3 22 27 11 10 41 . 6 Impact 81 | . . . 78 3 . . . . . . . . . . . . . . . . . . Slashing 143 | . . . . 18 . . . . . 2 3 . . . 3 22 27 11 10 41 . 6 Piercing . | . . . . . . . . . . . . . . . . . . . . . . . Sneak Attacks 16 | . . . 2 . . . . . . . . . . . . . 4 . 5 5 . . Combat Hostiles 5 | . . . . . . . . . . . . . . . . . 4 . . 1 . . Follow-up Attacks 2 | . . . . 2 . . . . . . . . . . . . . . . . . . Damage Inflicted 10269 | . 296 127 3098 1170 369 532 . . . . 60 . . . . 455 1021 78 844 2182 . 37 Guns 1983 | . 296 127 719 781 51 9 . . . . . . . . . . . . . . . . Cannons 39 | . . . . . . . . . . . . . . . . . . . . 39 . . Explosions 1679 | . . . . 89 318 523 . . . . 60 . . . . . . . . 689 . . Melee 6554 | . . . 2365 300 . . . . . . . . . . . 455 1021 78 844 1454 . 37 Ramming 14 | . . . 14 . . . . . . . . . . . . . . . . . . . Kinetic 841 | . . . . 781 51 9 . . . . . . . . . . . . . . . . Thermal 1181 | . 296 127 719 . . . . . . . . . . . . . . . . 39 . . Explosive . | . . . . . . . . . . . . . . . . . . . . . . . Electromagnetic 1679 | . . . . 89 318 523 . . . . 60 . . . . . . . . 689 . . Impact 2365 | . . . 2365 . . . . . . . . . . . . . . . . . . . Slashing 4189 | . . . . 300 . . . . . . . . . . . 455 1021 78 844 1454 . 37 Piercing . | . . . . . . . . . . . . . . . . . . . . . . . Highest Corruption 39 | . . . . 5 1 2 2 2 2 2 . . . . . 2 4 5 5 39 . 15 Average Corruption 4 | . . . . 5 1 1 2 2 2 2 . . . . . 1 2 4 5 7 . 10 Corruption Purged . | . . . . . . . . . . . . . . . . . . . . . . . Corruption Blocked . | . . . . . . . . . . . . . . . . . . . . . . . Effects 100 | . . . . 25 2 2 3 1 2 . . . . . . 1 12 6 4 33 . 9 Message Errors 20 | . . . . 3 . . . 1 1 . . . . . . . 3 3 1 7 . 1 Matter Fused 26 | . . . . 9 2 1 . . . . . . . . . . 2 . 2 8 . 2 Heat Flow Errors 14 | . . . . 4 . . 1 . . . . . . . . . 1 . . 6 . 2 Energy Discharges 14 | . . . . 2 . . 2 . . . . . . . . 1 2 1 1 4 . 1 Parts Rejected 1 | . . . . . . . . . . . . . . . . . . . . 1 . . Data Loss (minor) 11 | . . . . 2 . 1 . . . . . . . . . . 3 2 . 2 . 1 Data Loss (major) 4 | . . . . 2 . . . . 1 . . . . . . . . . . . . 1 Misfires 2 | . . . . 2 . . . . . . . . . . . . . . . . . . Alerts 4 | . . . . . . . . . . . . . . . . . 1 . . 3 . . Misdirections 3 | . . . . . . . . . . . . . . . . . . . . 2 . 1 Weapon Failures 1 | . . . . 1 . . . . . . . . . . . . . . . . . . Overload Shots . | . . . . . . . . . . . . . . . . . . . . . . . Overflow Damage 1057 | . . . 531 19 24 2 . . . . 25 . . . . . 28 . 256 172 . . Projectiles . | . . . . . . . . . . . . . . . . . . . . . . . Explosions 126 | . . . . . 24 2 . . . . 25 . . . . . . . . 75 . . Melee 931 | . . . 531 19 . . . . . . . . . . . . 28 . 256 97 . . Knockbacks 12 | . . . 12 . . . . . . . . . . . . . . . . . . . Impact 12 | . . . 12 . . . . . . . . . . . . . . . . . . . Kinetic . | . . . . . . . . . . . . . . . . . . . . . . . Secondary . | . . . . . . . . . . . . . . . . . . . . . . . Self-Inflicted Damage 252 | . . . . . 31 12 . . . . . . . . . . . . . 209 . . Shots 5 | . . . . . 2 1 . . . . . . . . . . . . . 2 . . Rammed . | . . . . . . . . . . . . . . . . . . . . . . . Targets Rammed 3 | . . . 3 . . . . . . . . . . . . . . . . . . . Kicked 3 | . . . 3 . . . . . . . . . . . . . . . . . . . Crushed . | . . . . . . . . . . . . . . . . . . . . . . . Highest Temperature 479 | . 240 130 135 232 153 327 479 324 126 304 73 87 160 51 . . 80 . . 246 . 252 Average Temperature 100 | . 80 73 51 82 66 116 146 156 67 126 23 37 81 21 . . 41 . . 115 . 111 Received Heat Transfer 1386 | . 105 45 408 288 60 102 9 . . 18 . 27 . . . . 72 9 . 39 18 186 Effects 15 | . . . . . . 8 1 4 . 2 . . . . . . . . . . . . Energy Bleed 5 | . . . . . . 2 1 . . 2 . . . . . . . . . . . . Interference 9 | . . . . . . 6 . 3 . . . . . . . . . . . . . . Matter Decay 1 | . . . . . . . . 1 . . . . . . . . . . . . . . Siege Activations . | . . . . . . . . . . . . . . . . . . . . . . . Robots Corrupted 2 | . . . . . 1 . . . . . . . . . . . . . . 1 . . Combat Hostiles 1 | . . . . . 1 . . . . . . . . . . . . . . . . . Parts Fried 15 | . . . 9 . 1 4 . . . . . . . . . . . . . 1 . . Impact Corruptions 25 | . . . 25 . . . . . . . . . . . . . . . . . . . Robots Melted . | . . . . . . . . . . . . . . . . . . . . . . . Combat Hostiles . | . . . . . . . . . . . . . . . . . . . . . . . Parts Melted 10 | . 4 . 6 . . . . . . . . . . . . . . . . . . . Heat Transferred 3343 | . 1073 333 1937 . . . . . . . . . . . . . . . . . . . Parts Sabotaged . | . . . . . . . . . . . . . . . . . . . . . . . Parts Stolen . | . . . . . . . . . . . . . . . . . . . . . . . Parts Stripped . | . . . . . . . . . . . . . . . . . . . . . . . Power Chain Reactions 5 | . . . . . 1 4 . . . . . . . . . . . . . . . . Alert | -11 -10 -10 -9 -8 -7 -6 -6 -6 -6 -5 -5 -5 -5 -5 -4 -4 -4 -4 -4 -4 -3 -3 ------- Run | Yrd Mat Min Mat Mat Fac Fac Low Low Dat Pro Fac Upp Upp Zhi Pro Fac Ext Cet Arc Hub Res Tes Peak Influence 1019 | . 142 85 477 599 378 528 . . . . 116 . . . . 143 467 620 507 1019 602 513 Initial 534 | . . 55 33 157 254 184 . . . . 46 . . . . . 56 173 248 177 534 279 Average 294 | . 60 84 235 402 267 336 . . . . 64 . . . . 67 277 456 418 351 527 393 Maximum Alert Level 3 | . . . 2 2 1 2 . . . . . . . . . . 2 2 2 3 2 2 Low Security (%) 31 | 100 100 100 36 1 5 23 . . . . 100 . . . . 100 23 13 . 22 . . Level 1 42 | . . . 56 51 94 36 . . . . . . . . . . 65 30 31 55 5 49 Level 2 24 | . . . 6 47 . 39 . . . . . . . . . . 11 55 68 14 94 50 Level 3 . | . . . . . . . . . . . . . . . . . . . . 6 . . Level 4 . | . . . . . . . . . . . . . . . . . . . . . . . Level 5 . | . . . . . . . . . . . . . . . . . . . . . . . High Security . | . . . . . . . . . . . . . . . . . . . . . . . Max Security . | . . . . . . . . . . . . . . . . . . . . . . . Squads Dispatched 31 | . 2 . 3 2 6 6 . . . . . . . . . 3 . . . 2 3 4 Investigation 10 | . 1 . 2 1 1 3 . . . . . . . . . 2 . . . . . . Extermination 5 | . . . . . 1 1 . . . . . . . . . 1 . . . 1 . 1 Reinforcement 11 | . 1 . 1 1 2 2 . . . . . . . . . . . . . 1 1 2 Assault 3 | . . . . . . . . . . . . . . . . . . . . . 2 1 Garrison 2 | . . . . . 2 . . . . . . . . . . . . . . . . . Intercept . | . . . . . . . . . . . . . . . . . . . . . . . Searches Triggered 2 | . . . . . . 1 . . . . . . . . . . . . . . . 1 Data Miner Redirects 3 | . . . . . . . . . . . . . . . . . . . . . 2 1 Construction Impeded 2 | . . . . . 1 1 . . . . . . . . . . . . . . . . Haulers Reinforced 1 | . . . . . . . . . . . . . . . . . . . . 1 . . Active Scanning Responses . | . . . . . . . . . . . . . . . . . . . . . . . Cargo Convoy Interrupts . | . . . . . . . . . . . . . . . . . . . . . . . Stealth | -11 -10 -10 -9 -8 -7 -6 -6 -6 -6 -5 -5 -5 -5 -5 -4 -4 -4 -4 -4 -4 -3 -3 --------- Run | Yrd Mat Min Mat Mat Fac Fac Low Low Dat Pro Fac Upp Upp Zhi Pro Fac Ext Cet Arc Hub Res Tes Distress Signals 9 | . 1 . 2 2 . . . . . . . . . . . 2 . 1 . . . 1 Communications Jammed 59 | . . . . . . . . . . . . . . . . 31 11 9 . 8 . . Distress Signals 54 | . . . . . . . . . . . . . . . . 26 11 9 . 8 . . Times Spotted 301 | . 13 1 37 36 12 40 3 . . 7 1 3 . . . 16 25 6 5 34 12 50 Peak Tracking Total 18 | . 5 1 4 7 4 7 3 . . 5 1 3 . . . 9 6 5 2 8 7 18 Tactical Retreats 38 | . . . . 1 4 10 . . . 2 . 1 . . . 3 2 . . 5 2 8 Traps | -11 -10 -10 -9 -8 -7 -6 -6 -6 -6 -5 -5 -5 -5 -5 -4 -4 -4 -4 -4 -4 -3 -3 ------- Run | Yrd Mat Min Mat Mat Fac Fac Low Low Dat Pro Fac Upp Upp Zhi Pro Fac Ext Cet Arc Hub Res Tes Traps Triggered 12 | . . . 1 2 . . . . . . . . . . . . 4 . . 3 . 2 Indirectly 3 | . . . . 1 . . . . . . . . . . . . . . . 2 . . Trap Hack Attempts . | . . . . . . . . . . . . . . . . . . . . . . . Triggered . | . . . . . . . . . . . . . . . . . . . . . . . Disarmed . | . . . . . . . . . . . . . . . . . . . . . . . Reprogrammed . | . . . . . . . . . . . . . . . . . . . . . . . Reused . | . . . . . . . . . . . . . . . . . . . . . . . Traps Extracted . | . . . . . . . . . . . . . . . . . . . . . . . Installed . | . . . . . . . . . . . . . . . . . . . . . . . Triggered 2 | . . . . . . . . 1 . 1 . . . . . . . . . . . . Machines | -11 -10 -10 -9 -8 -7 -6 -6 -6 -6 -5 -5 -5 -5 -5 -4 -4 -4 -4 -4 -4 -3 -3 ---------- Run | Yrd Mat Min Mat Mat Fac Fac Low Low Dat Pro Fac Upp Upp Zhi Pro Fac Ext Cet Arc Hub Res Tes Machines Disabled 26 | . 1 . 1 1 1 1 . . . . 2 . . . . . . 3 . 15 . 1 Max in Single Turn 10 | . 1 . 1 1 1 1 . . . . 2 . . . . . . . . 10 . 1 Garrison Access 3 | . . . . . . . . . . . . . . . . 1 . . . 1 . 1 Network Hub 2 | . . . . . . . . . . . . . . . . . . . . 2 . . Machines Repaired . | . . . . . . . . . . . . . . . . . . . . . . . Machines Dismantled . | . . . . . . . . . . . . . . . . . . . . . . . Machines Sabotaged . | . . . . . . . . . . . . . . . . . . . . . . . Overloaded Fab Kills . | . . . . . . . . . . . . . . . . . . . . . . . Hacking | -11 -10 -10 -9 -8 -7 -6 -6 -6 -6 -5 -5 -5 -5 -5 -4 -4 -4 -4 -4 -4 -3 -3 --------- Run | Yrd Mat Min Mat Mat Fac Fac Low Low Dat Pro Fac Upp Upp Zhi Pro Fac Ext Cet Arc Hub Res Tes Machines Accessed 87 | . 3 . 9 11 8 10 . 1 4 . 1 . . 9 . 12 2 1 1 9 1 5 Terminals 50 | . 2 . 8 7 5 7 . . . . 1 . . . . 5 2 1 . 8 1 3 Fabricators 4 | . . . . . 1 . . . . . . . . . . 3 . . . . . . Repair Stations 5 | . 1 . . 1 1 1 . . . . . . . . . 1 . . . . . . Recycling Units 3 | . . . . 1 1 1 . . . . . . . . . . . . . . . . Scanalyzers 5 | . . . 1 1 . . . . . . . . . . . 2 . . . . . 1 Garrison Access 5 | . . . . 1 . 1 . . . . . . . . . 1 . . . 1 . 1 Total Hacks 364 | . 8 . 31 33 16 27 . 1 30 . 2 . . 48 . 49 9 3 25 46 15 21 Successful 234 | . 2 . 21 19 4 8 . 1 30 . 1 . . 48 . 32 2 . 25 23 8 10 Failed 130 | . 6 . 10 14 12 19 . . . . 1 . . . . 17 7 3 . 23 7 11 Catastrophic 29 | . 3 . . 2 2 7 . . . . 1 . . . . 5 3 1 . 3 2 . Database Lockouts . | . . . . . . . . . . . . . . . . . . . . . . . Manual 110 | . 5 . 16 14 9 6 . . . . . . . . . 10 9 2 1 28 10 . Terminals 192 | . 5 . 21 18 12 23 . . . . 2 . . . . 22 9 3 . 45 15 17 Fabricators 5 | . . . . . 1 . . . . . . . . . . 4 . . . . . . Repair Stations 20 | . 3 . . 6 1 1 . . . . . . . . . 9 . . . . . . Recycling Units 6 | . . . . 3 2 1 . . . . . . . . . . . . . . . . Scanalyzers 30 | . . . 10 4 . . . . . . . . . . . 13 . . . . . 3 Garrison Access 7 | . . . . 2 . 2 . . . . . . . . . 1 . . . 1 . 1 Terminal Hacks 162 | . . . 7 7 . 4 . 1 30 . 1 . . 48 . 7 1 . 25 18 6 7 Record 77 | . . . . . . . . . 11 . . . . 36 . . . . 25 4 1 . Part Schematic 18 | . . . . 1 . . . . 12 . . . . 4 . 1 . . . . . . Robot Schematic 4 | . . . . . . . . . 4 . . . . . . . . . . . . . Robot Analysis 4 | . . . . . . . . . . . . . . 4 . . . . . . . . Prototype ID Bank 7 | . . . . . . . . . 3 . . . . 4 . . . . . . . . Open Door 1 | . . . . . . . . 1 . . . . . . . . . . . . . . Branch Access Points 4 | . . . 1 1 . . . . . . 1 . . . . . . . . 1 . . Emergency Access Points 2 | . . . . . . . . . . . . . . . . . . . . 2 . . Terminal Index 3 | . . . . . . . . . . . . . . . . 1 . . . . 1 1 Repair Station Index 1 | . . . . . . . . . . . . . . . . . . . . . . 1 Scanalyzer Index 3 | . . . . . . . . . . . . . . . . 1 . . . 1 . 1 Garrison Index 1 | . . . . . . . . . . . . . . . . . . . . 1 . . Alert Level 2 | . . . . . . . . . . . . . . . . . . . . 1 1 . Unreport Threat 1 | . . . . . . 1 . . . . . . . . . . . . . . . . Locate Traps 6 | . . . 1 . . 1 . . . . . . . . . 1 1 . . 1 1 . Dispatch Records 2 | . . . . 1 . . . . . . . . . . . . . . . 1 . . Maintenance Status 1 | . . . . 1 . . . . . . . . . . . . . . . . . . Security Status 2 | . . . 1 . . . . . . . . . . . . . . . . 1 . . Surveillance Status 3 | . . . 1 . . . . . . . . . . . . . . . . 1 1 . Patrol Status 4 | . . . 1 1 . 1 . . . . . . . . . 1 . . . . . . Garrison Status 1 | . . . . 1 . . . . . . . . . . . . . . . . . . Recall Investigation 1 | . . . . . . . . . . . . . . . . 1 . . . . . . Recall Extermination 1 | . . . . . . . . . . . . . . . . . . . . 1 . . Recall Assault 1 | . . . . . . . . . . . . . . . . . . . . . . 1 Hauler Manifests 2 | . . . 1 . . . . . . . . . . . . . . . . 1 . . Registered Components 1 | . . . . . . . . . . . . . . . . . . . . . . 1 Zone Layout 7 | . . . 1 1 . 1 . . . . . . . . . 1 . . . 2 1 . Protovariant Controls 2 | . . . . . . . . . . . . . . . . . . . . . . 2 Fabricator Hacks 5 | . . . . . 1 . . . . . . . . . . 4 . . . . . . Network Status 2 | . . . . . 1 . . . . . . . . . . 1 . . . . . . Load Schematic 1 | . . . . . . . . . . . . . . . . 1 . . . . . . Build 2 | . . . . . . . . . . . . . . . . 2 . . . . . . Repair Station Hacks 10 | . . . . 4 . 1 . . . . . . . . . 5 . . . . . . Scan Component 4 | . . . . 2 . . . . . . . . . . . 2 . . . . . . Repair 4 | . . . . 2 . . . . . . . . . . . 2 . . . . . . Refit 2 | . . . . . . 1 . . . . . . . . . 1 . . . . . . Recycling Unit Hacks 2 | . . . . . 1 1 . . . . . . . . . . . . . . . . Report Inventory 2 | . . . . . 1 1 . . . . . . . . . . . . . . . . Scanalyzer 29 | . . . 10 4 . . . . . . . . . . . 13 . . . . . 2 Insert Component 12 | . . . 4 2 . . . . . . . . . . . 5 . . . . . 1 Analyze 17 | . . . 6 2 . . . . . . . . . . . 8 . . . . . 1 Garrison Access Hacks 3 | . . . . . . . . . . . . . . . . 1 . . . 1 . 1 Seal Access 3 | . . . . . . . . . . . . . . . . 1 . . . 1 . 1 Unauthorized Hacks 23 | . 2 . 4 4 2 2 . . . . . . . . . 2 1 . . 4 2 . Terminals 20 | . 2 . 4 1 2 2 . . . . . . . . . 2 1 . . 4 2 . Assimilate 4 | . 1 . . . . . . . . . . . . . . . . . . 2 1 . Botnet 16 | . 1 . 4 1 2 2 . . . . . . . . . 2 1 . . 2 1 . Fabricators . | . . . . . . . . . . . . . . . . . . . . . . . Repair Stations . | . . . . . . . . . . . . . . . . . . . . . . . Recycling Units 2 | . . . . 2 . . . . . . . . . . . . . . . . . . Monitor 1 | . . . . 1 . . . . . . . . . . . . . . . . . . Reject 1 | . . . . 1 . . . . . . . . . . . . . . . . . . Scanalyzers . | . . . . . . . . . . . . . . . . . . . . . . . Garrison Access 1 | . . . . 1 . . . . . . . . . . . . . . . . . . Reprogram 1 | . . . . 1 . . . . . . . . . . . . . . . . . . Data Cores Recovered 1 | . . . . . . 1 . . . . . . . . . . . . . . . . Used . | . . . . . . . . . . . . . . . . . . . . . . . Hacking Detections 58 | . 3 . 7 9 8 8 . . . . 1 . . . . 8 2 1 . 8 1 2 Full Trace Events 8 | . 1 . 1 . 1 3 . . . . . . . . . 2 . . . . . . Feedback Events 1 | . . . . . 1 . . . . . . . . . . . . . . . . . Corruption 1 | . . . . . 1 . . . . . . . . . . . . . . . . . Feedback Blocked . | . . . . . . . . . . . . . . . . . . . . . . . Robot Schematics Acquired 4 | . . . . . . . . . 4 . . . . . . . . . . . . . Robots Built . | . . . . . . . . . . . . . . . . . . . . . . . Authchips . | . . . . . . . . . . . . . . . . . . . . . . . Time . | . . . . . . . . . . . . . . . . . . . . . . . Total Robot Build Rating . | . . . . . . . . . . . . . . . . . . . . . . . Part Schematics Acquired 29 | . . . 3 3 . . . . 12 . . . . 4 . 6 . . . . . 1 Parts Built 3 | . . . . . . . . . . . . . . . . 3 . . . . . . Authchips . | . . . . . . . . . . . . . . . . . . . . . . . Time 245 | . . . . . . . . . . . . . . . . 245 . . . . . . Total Part Build Rating 24 | . . . . . . . . . . . . . . . . 24 . . . . . . Parts Repaired 4 | . . . . 2 . . . . . . . . . . . 2 . . . . . . Time 124 | . . . . 64 . . . . . . . . . . . 60 . . . . . . Parts Recycled . | . . . . . . . . . . . . . . . . . . . . . . . Recycled Matter . | . . . . . . . . . . . . . . . . . . . . . . . Retrieved Matter . | . . . . . . . . . . . . . . . . . . . . . . . Retrieved Components . | . . . . . . . . . . . . . . . . . . . . . . . Parts Scanalyzed 11 | . . . 3 2 . . . . . . . . . . . 5 . . . . . 1 Part Schematics Acquired 11 | . . . 3 2 . . . . . . . . . . . 5 . . . . . 1 Parts Damaged 2 | . . . 1 . . . . . . . . . . . . 1 . . . . . . Bothacking | -11 -10 -10 -9 -8 -7 -6 -6 -6 -6 -5 -5 -5 -5 -5 -4 -4 -4 -4 -4 -4 -3 -3 ------------ Run | Yrd Mat Min Mat Mat Fac Fac Low Low Dat Pro Fac Upp Upp Zhi Pro Fac Ext Cet Arc Hub Res Tes Used RIF Installer . | . . . . . . . . . . . . . . . . . . . . . . . Robots Hacked . | . . . . . . . . . . . . . . . . . . . . . . . Non-combat . | . . . . . . . . . . . . . . . . . . . . . . . Combat . | . . . . . . . . . . . . . . . . . . . . . . . Robot Hacks Applied . | . . . . . . . . . . . . . . . . . . . . . . . Relay Couplers Released . | . . . . . . . . . . . . . . . . . . . . . . . Fabnet Peak Effective % . | . . . . . . . . . . . . . . . . . . . . . . . Robots Rewired 25 | . . . . . . . . . . . . . . . . . 25 . . . . . Allies Hacked . | . . . . . . . . . . . . . . . . . . . . . . . Hacks Repelled . | . . . . . . . . . . . . . . . . . . . . . . . Allies | -11 -10 -10 -9 -8 -7 -6 -6 -6 -6 -5 -5 -5 -5 -5 -4 -4 -4 -4 -4 -4 -3 -3 -------- Run | Yrd Mat Min Mat Mat Fac Fac Low Low Dat Pro Fac Upp Upp Zhi Pro Fac Ext Cet Arc Hub Res Tes Total Allies 40 | . 1 . . . . . . . . . . . . . . . 32 5 . 1 1 . Largest Group 18 | . 1 . . . . . . . . . . . . . . . 18 9 7 7 1 . Highest-Rated Group 772 | . 10 . . . . . . . . . . . . . . . 772 675 675 529 26 . Highest-Rated Ally 159 | . 10 . . . . . . . . . . . . . . . 159 153 146 96 26 . Total Orders 14 | . . . . . . . . . . . . . . . . . . . . 12 2 . STAY 8 | . . . . . . . . . . . . . . . . . . . . 7 1 . FOLLOW 6 | . . . . . . . . . . . . . . . . . . . . 5 1 . Ally Attacks 206 | . . . . . . . . . . . . . . . . . 103 59 25 19 . . Total Damage 6872 | . . . . . . . . . . . . . . . . . 3414 1715 963 780 . . Kills 40 | . . . . . . . . . . . . . . . . . 19 12 3 6 . . Allies Corrupted . | . . . . . . . . . . . . . . . . . . . . . . . Allies Melted 2 | . . . . . . . . . . . . . . . . . 2 . . . . . Intel | -11 -10 -10 -9 -8 -7 -6 -6 -6 -6 -5 -5 -5 -5 -5 -4 -4 -4 -4 -4 -4 -3 -3 ------- Run | Yrd Mat Min Mat Mat Fac Fac Low Low Dat Pro Fac Upp Upp Zhi Pro Fac Ext Cet Arc Hub Res Tes Robot Analysis Total 4 | . . . . . . . . . . . . . . 4 . . . . . . . . Derelict Logs Recovered 6 | . . 1 . . . . 1 . . 2 . 1 1 . . . . . . . . . Drone Launches . | . . . . . . . . . . . . . . . . . . . . . . . Drone Recoveries . | . . . . . . . . . . . . . . . . . . . . . . . Exploration | -11 -10 -10 -9 -8 -7 -6 -6 -6 -6 -5 -5 -5 -5 -5 -4 -4 -4 -4 -4 -4 -3 -3 ------------- Run | Yrd Mat Min Mat Mat Fac Fac Low Low Dat Pro Fac Upp Upp Zhi Pro Fac Ext Cet Arc Hub Res Tes Turns Passed 10156 | 63 282 346 1257 1330 600 653 143 90 41 205 54 142 73 90 183 904 971 236 129 1311 589 464 Spaces Moved 14042 | 43 169 269 683 780 1427 1761 308 217 81 407 144 283 280 210 431 1904 1052 366 254 1803 463 707 Core 221 | 28 . . . . . . . . . . . . . . . . . . . 35 157 1 Treads 1 | . . . . . . . . . . . . . . . . . . . . . . 1 Legs 2065 | 15 169 269 683 780 77 . . . . . . . . . . . . . . . 72 . Wheels . | . . . . . . . . . . . . . . . . . . . . . . . Hover . | . . . . . . . . . . . . . . . . . . . . . . . Flight 11755 | . . . . . 1350 1761 308 217 81 407 144 283 280 210 431 1904 1052 366 254 1768 234 705 Fastest Speed 20 | 50 120 120 120 120 20 20 22 22 22 22 22 26 26 26 26 26 26 26 27 27 35 29 Average Speed 41 | 124 120 120 120 120 31 24 22 22 22 22 25 26 26 26 26 26 26 26 27 28 52 57 Slowest Speed 200 | 200 120 120 120 120 120 30 22 22 22 22 26 26 26 100 26 26 100 27 27 50 110 145 Overloaded Moves . | . . . . . . . . . . . . . . . . . . . . . . . Propulsion Burnouts . | . . . . . . . . . . . . . . . . . . . . . . . Robots Hopped 123 | . . . . . 6 23 . 1 . 2 . . . . . 17 19 2 . 23 1 29 Cave-ins Triggered . | . . . . . . . . . . . . . . . . . . . . . . . Teleports 1 | . . . . . . . . . . . . . . 1 . . . . . . . . Exploration Rate (%) 51 | 4 26 61 63 62 32 45 57 40 68 65 3 53 51 62 60 22 85 87 94 78 10 67 Regions Visited 22 Branch Regions 14 Pre-discovered Areas 5 | . . . . . . . . . 1 . . 1 . 3 . . . . . . . . Known Exits Taken 11 | . . . . . . . . . . . 1 1 1 1 1 1 1 1 1 1 1 . Unknown Exits Taken 11 | 1 1 1 1 1 1 1 1 1 1 1 . . . . . . . . . . . . Scrap Searched 15 | . . 3 . . . . 2 . . 4 . 3 2 . 1 . . . . . . . Spaces Dug 22 | . . . 1 . . . . . . 2 3 . . . 3 5 . 1 . 4 . 3 Terrain Destroyed 365 | . . . 1 . 6 13 . . . 2 3 . . . 3 5 . 1 . 328 . 3 Melee 22 | . . . 1 . . . . . . 2 3 . . . 3 5 . 1 . 4 . 3 Projectile 1 | . . . . . . . . . . . . . . . . . . . . 1 . . AOE 342 | . . . . . 6 13 . . . . . . . . . . . . . 323 . . Terrain Rammed . | . . . . . . . . . . . . . . . . . . . . . . . Walls Destroyed . | . . . . . . . . . . . . . . . . . . . . . . . Machines Disabled . | . . . . . . . . . . . . . . . . . . . . . . . Actions | -11 -10 -10 -9 -8 -7 -6 -6 -6 -6 -5 -5 -5 -5 -5 -4 -4 -4 -4 -4 -4 -3 -3 --------- Run | Yrd Mat Min Mat Mat Fac Fac Low Low Dat Pro Fac Upp Upp Zhi Pro Fac Ext Cet Arc Hub Res Tes Total 17662 | 50 215 282 978 1084 1559 1943 382 257 103 516 155 350 279 243 496 2265 1685 485 299 2508 805 723 Wait 2844 | . 23 2 135 194 97 154 74 42 23 110 1 67 . 19 63 328 383 108 27 650 334 10 Move 13794 | 42 168 268 682 779 1414 1716 307 214 80 403 143 282 279 209 430 1869 1017 362 253 1762 460 655 Hop 103 | . . . . . 6 21 . 1 . 1 . . . . . 17 15 1 . 17 1 23 Pick Up 71 | 2 3 3 10 12 7 6 . . . . 2 . . 2 . 9 3 . 2 1 1 8 Fast Attach 66 | 5 2 . 4 12 6 6 . . . . 1 1 . 5 . 2 5 . 1 6 2 8 Attach 60 | 1 . 1 4 3 5 10 1 . . . 2 . . 3 . 5 4 1 . 8 5 7 Detach 28 | . . . 2 2 . 7 . . . . . . . 1 . 2 2 . 1 8 2 1 Swap 26 | . 1 1 9 6 1 1 . . . . . . . . . 2 . 2 2 1 . . Drop 92 | . 2 2 16 23 10 9 . . . . 2 . . 4 . 9 1 . 3 9 . 2 Fire 123 | . 16 5 35 35 13 13 . . . . 1 . . . . . . . . 5 . . Melee 221 | . . . 78 18 . . . . . 2 3 . . . 3 22 27 11 10 41 . 6 Ram . | . . . . . . . . . . . . . . . . . . . . . . . Kick 3 | . . . 3 . . . . . . . . . . . . . . . . . . . Crush . | . . . . . . . . . . . . . . . . . . . . . . . Escape Stasis 52 | . . . . . . . . . . . . . . . . . 49 . . . . 3 Rewire 179 | . . . . . . . . . . . . . . . . . 179 . . . . . Trap . | . . . . . . . . . . . . . . . . . . . . . . . Miscellaneous . | . . . . . . . . . . . . . . . . . . . . . . . Route ------- -11/Scrapyard -10/Materials -10/Mines (discovered 2 exits: *Mat / [*Exi]) -9/Materials (discovered 5 exits: *Mat x2 / *Min / *Sto x2) -8/Materials (discovered 2 exits: *Fac x2) -7/Factory (discovered 2 exits: *Fac / [*Low]) -6/Factory (discovered 3 exits: *Fac / [*Low x2]) -6/Lower Caves -6/Lower Caves (discovered 2 exits: *Fac / *Dat) -6/Data Miner -5/Proximity Caves -5/Factory (discovered 2 exits: *Upp x2) -5/Upper Caves -5/Upper Caves (discovered 2 exits: *Fac / *Zhi) -5/Zhirov -4/Proximity Caves -4/Factory (discovered 2 exits: *Res / *Ext) -4/Extension (discovered 3 exits: *Res x2 / *Cet) -4/Cetus (discovered 2 exits: *Res / *Arc) -4/Archives (discovered 3 exits: *Res / *Hub x2) -4/Hub_04(d) (discovered 2 exits: *Res x2) -3/Research -3/Testing (discovered 1 exit: *Res) History --------- Turn | Location | Event 24 | -11/Scrapyard | Discovered new exit (range 15) 64 | -11/Scrapyard | Entered Materials 294 | -10/Materials | Discovered new exit (range 12) 308 | -10/Materials | Build established: Mutant 346 | -10/Materials | Entered Mines 346 | -10/Mines | Accompanied by 1 ally 378 | -10/Mines | Received a Rocket Launcher from a helpful Derelict 397 | -10/Mines | A weapon hastily lodged in a ceiling crevice suddenly fell to the ground 409 | -10/Mines | Deemed a non-threat by the Exiles lab entrance 409 | -10/Mines | Discovered new exit (range 5) 652 | -10/Mines | Learned 2 Materials zone layouts 677 | -10/Mines | Discovered new exit (range 6) 692 | -10/Mines | Entered Materials 692 | -9/Materials | Evolved 2 slots: Propulsion x2 1000 | -9/Materials | Build established: Scavenger-Mutant 1192 | -9/Materials | Discovered new exit (range 15) 1401 | -9/Materials | Discovered new exit (range 16) 1786 | -9/Materials | Build established: Mutant 1819 | -9/Materials | Discovered new exit (range 5) 1940 | -9/Materials | Discovered new exit (range 7) 1947 | -9/Materials | Identified exit to Mines 1947 | -9/Materials | Identified exit to Storage 1949 | -9/Materials | Entered another Materials area 1949 | -8/Materials | Evolved 2 slots: Utility x2 2100 | -8/Materials | Discovered new exit (range 4) 2747 | -8/Materials | Repaired Lgt. Nuclear Core 2774 | -8/Materials | Repaired Heat Sink 3141 | -8/Materials | Destroyed 7 combat bots 3215 | -8/Materials | Discovered new exit (range 11) 3279 | -8/Materials | Entered Factory 3279 | -7/Factory | Evolved 2 slots: Propulsion x2 3312 | -7/Factory | Discovered new exit (range 15) 3639 | -7/Factory | Discovered new exit (range 6) 3677 | -7/Factory | Build established: Sprinter 3704 | -7/Factory | Garrison activated, responded to threat 3879 | -7/Factory | Entered another Factory area 3879 | -6/Factory | Evolved 2 slots: Power x1, Utility x1 3968 | -6/Factory | Spotted B-75 Beast 4055 | -6/Factory | Discovered new exit (range 13) 4229 | -6/Factory | Search patrols dispatched 4243 | -6/Factory | Discovered new exit (range 6) 4305 | -6/Factory | Discovered new exit (range 8) 4532 | -6/Factory | Entered Lower Caves 4533 | -6/Lower Caves | Encountered a Warlord checkpoint 4601 | -6/Lower Caves | Learned Factory stockpile data 4671 | -6/Lower Caves | Discovered new exit (range 10) 4674 | -6/Lower Caves | Attracted the attention of an 0b10 outpost 4675 | -6/Lower Caves | Entered another Lower Caves area 4676 | -6/Lower Caves | Discovered new exit (range 6) 4761 | -6/Lower Caves | Discovered new exit (range 11) 4765 | -6/Lower Caves | Entered Data Miner 4765 | -6/Data Miner | Discovered new exit (range 6) 4770 | -6/Data Miner | Met Data Miner 4786 | -6/Data Miner | Learned location of Section 7 (-2) 4786 | -6/Data Miner | Acquired the access code to Warlord's prototype stash 4789 | -6/Data Miner | Received God Mode back door access code from Data Miner 4806 | -6/Data Miner | Entered Proximity Caves 4851 | -5/Proximity Caves | Encountered a Derelict sapper outpost 4951 | -5/Proximity Caves | Learned Factory garrison access intel 4989 | -5/Proximity Caves | Learned Factory garrison access intel 5007 | -5/Proximity Caves | Discovered new exit (range 15) 5011 | -5/Proximity Caves | Entered Factory 5011 | -5/Factory | Evolved 2 slots: Utility x2 5013 | -5/Factory | Loaded intel: 4 garrison access locations 5057 | -5/Factory | Identified exit to Upper Caves 5065 | -5/Factory | Entered Upper Caves 5093 | -5/Upper Caves | Encountered a Warlord checkpoint 5137 | -5/Upper Caves | Discovered new exit (range 10) 5207 | -5/Upper Caves | Identified exit to Upper Caves 5207 | -5/Upper Caves | Entered another Upper Caves area 5208 | -5/Upper Caves | Discovered new exit (range 14) 5211 | -5/Upper Caves | Identified exit to Factory 5270 | -5/Upper Caves | Encountered a Warlord checkpoint 5271 | -5/Upper Caves | Discovered new exit (range 10) 5273 | -5/Upper Caves | Identified exit to Zhirov 5276 | -5/Upper Caves | Learned Factory terminal intel 5280 | -5/Upper Caves | Entered Zhirov 5280 | -5/Zhirov | Discovered new exit (range 4) 5281 | -5/Zhirov | Identified exit to Proximity Caves 5285 | -5/Zhirov | Met Zhirov 5290 | -5/Zhirov | Learned location of Quarantine (-2) 5290 | -5/Zhirov | Learned location of Testing (-3) 5290 | -5/Zhirov | Learned location of Command (-1) 5296 | -5/Zhirov | Zhirov requested help retrieving the SGEMP Prototype 5345 | -5/Zhirov | Found Alien Artifact 5345 | -5/Zhirov | Identified Transdimensional Reconstructor 5345 | -5/Zhirov | Warped through subspace 5356 | -5/Zhirov | Found Alien Artifact 5356 | -5/Zhirov | Identified Integrated Dissipator 5356 | -5/Zhirov | Installed Integrated Dissipator, increased core heat dissipation (+20) 5370 | -5/Zhirov | Entered Proximity Caves 5550 | -4/Proximity Caves | Discovered exit to Factory (range 11) 5553 | -4/Proximity Caves | Entered Factory 5553 | -4/Factory | Evolved 2 slots: Utility x2 5554 | -4/Factory | Loaded intel: 28 terminal locations 5555 | -4/Factory | Loaded intel: 3 garrison access locations 5616 | -4/Factory | Build established: Hacker-Ninja 5699 | -4/Factory | Repaired Lgt. Angular Momentum Engine 5736 | -4/Factory | Repaired Imp. Cesium-ion Thruster 5897 | -4/Factory | Fabricated Adv. Hacking Suite? 6017 | -4/Factory | Discovered new exit (range 15) 6021 | -4/Factory | Identified exit to Research 6045 | -4/Factory | Spotted B-86 Titan 6128 | -4/Factory | Fabricated Lgt. Quantum Reactor (x2) 6260 | -4/Factory | Discovered new exit (range 15) 6456 | -4/Factory | Identified exit to Extension 6457 | -4/Factory | Entered Extension 6488 | -4/Extension | Spotted B-86 Titan 6777 | -4/Extension | Rescued a captive Derelict 6894 | -4/Extension | Rescued a captive Derelict 7046 | -4/Extension | Rescued a captive Derelict 7047 | -4/Extension | Rescued a captive Derelict 7053 | -4/Extension | Rescued a captive Derelict 7072 | -4/Extension | Spotted B-86 Titan 7088 | -4/Extension | Discovered exit to Research (range 3) 7109 | -4/Extension | Rescued a captive Derelict 7125 | -4/Extension | Rescued A7 7143 | -4/Extension | Lost 17 allies 7174 | -4/Extension | Lost 3 parts (1p1n1u) 7384 | -4/Extension | Discovered exit to Research (range 10) 7384 | -4/Extension | Discovered new exit (range 6) 7391 | -4/Extension | Identified exit to Cetus 7428 | -4/Extension | Entered Cetus 7428 | -4/Cetus | Accompanied by 9 allies (A7) 7433 | -4/Cetus | Acquired a Cetus Manufacturing Module code from A7 7437 | -4/Cetus | Spotted Cetus Guard 7437 | -4/Cetus | Spotted Cetus Guard 7439 | -4/Cetus | Spotted Cetus Guard 7439 | -4/Cetus | Spotted Cetus Guard 7458 | -4/Cetus | Started Cetus Manufacturing Module 7471 | -4/Cetus | Allies destroyed Cetus Guard 7475 | -4/Cetus | Allies destroyed Cetus Guard 7483 | -4/Cetus | Manufactured an Enhanced Grunt 7508 | -4/Cetus | Manufactured an Enhanced Grunt 7521 | -4/Cetus | Discovered exit to Research (range 21) 7533 | -4/Cetus | Manufactured an Enhanced Grunt 7558 | -4/Cetus | Manufactured an Enhanced Grunt 7583 | -4/Cetus | Manufactured an Enhanced Grunt 7622 | -4/Cetus | Escorted A7 to Cetus Mainframe 7633 | -4/Cetus | Discovered new exit (range 21) 7639 | -4/Cetus | Identified exit to Archives 7664 | -4/Cetus | Entered Archives 7664 | -4/Archives | Accompanied by 7 allies (A7) 7669 | -4/Archives | Received a hacking code to weaken MAIN.C 7699 | -4/Archives | Unable to access archive contents 7700 | -4/Archives | Discovered exit to Research (range 15) 7702 | -4/Archives | Unable to access archive contents 7703 | -4/Archives | Discovered new exit (range 13) 7707 | -4/Archives | Identified exit to Hub_04(d) 7715 | -4/Archives | Unable to access archive contents 7715 | -4/Archives | Unable to access archive contents 7717 | -4/Archives | Discovered exit to Hub_04(d) (range 13) 7723 | -4/Archives | Unable to access archive contents 7793 | -4/Archives | Entered Hub_04(d) 7793 | -4/Hub_04(d) | Accompanied by 6 allies 7833 | -4/Hub_04(d) | Discovered exit to Research (range 15) 7960 | -4/Hub_04(d) | Discovered exit to Research (range 10) 8788 | -4/Hub_04(d) | Spotted B-86 Titan 8981 | -4/Hub_04(d) | Network Hub disabled 8985 | -4/Hub_04(d) | System corruption reached 10% 8991 | -4/Hub_04(d) | Spotted Lightning 9013 | -4/Hub_04(d) | Spotted Lightning 9013 | -4/Hub_04(d) | Spotted Lightning 9015 | -4/Hub_04(d) | Network Hub disabled 9021 | -4/Hub_04(d) | Core integrity fell below 50% 9024 | -4/Hub_04(d) | System corruption reached 30% 9036 | -4/Hub_04(d) | Disrupted transfer network 9054 | -4/Hub_04(d) | Lost 13 parts (2p7n3u1w) 9071 | -4/Hub_04(d) | Spotted Lightning 9072 | -4/Hub_04(d) | Spotted Lightning 9077 | -4/Hub_04(d) | Spotted Lightning 9078 | -4/Hub_04(d) | Core integrity fell below 20% 9100 | -4/Hub_04(d) | Spotted Lightning 9100 | -4/Hub_04(d) | Spotted Lightning 9104 | -4/Hub_04(d) | Entered Research 9104 | -3/Research | Evolved 2 slots: Utility x2 9127 | -3/Research | Discovered new exit (range 6) 9354 | -3/Research | First assault squad dispatched 9561 | -3/Research | Build established: Hacker-Scout 9631 | -3/Research | Incoming assault squad redirected 9638 | -3/Research | Incoming assault squad redirected 9662 | -3/Research | Identified exit to Testing 9693 | -3/Research | Entered Testing 9707 | -3/Testing | Protovariant out of control (PH-LR6UKE3ZRX) 9707 | -3/Testing | Unleashed a protovariant (PH-LR6UKE3ZRX) 9713 | -3/Testing | Spotted PH-LR6UKE3ZRX 9730 | -3/Testing | Incoming assault squad redirected 9733 | -3/Testing | Found Prototype Slashing Weapon 9733 | -3/Testing | Identified Nanosword 9838 | -3/Testing | Discovered new exit (range 13) 9855 | -3/Testing | Identified exit to Research 9970 | -3/Testing | Search patrols dispatched 9981 | -3/Testing | Found Prototype Device 9981 | -3/Testing | Identified 2N-1CE's Frost Array 10038 | -3/Testing | System corruption reached 10% 10058 | -3/Testing | Core integrity fell below 50% 10105 | -3/Testing | Lost 9 parts (5n3u1w) 10132 | -3/Testing | Core integrity fell below 20% 10139 | -3/Testing | Spotted Striker 10139 | -3/Testing | Spotted Striker 10142 | -3/Testing | Spotted Alpha 7 10146 | -3/Testing | Stole the SGEMP Prototype 10157 | -3/Testing | Destroyed by G-67 Veteran with Plasma Rifle Last Messages --------------- 10105_ Adv. Hacking Suite destroyed. 10114_ Door malfunctions. 10116_ System corrupted: Component data lost. 10124_ Slug penetrates Door. 10133_ System corrupted: Substantial component data lost. 10140_ Knocked back. 10143_ Penetrated by Slug. 10143_ Slug penetrates Machine. 10143_ Machine disabled. 10144_ Dropped Lgt. Quantum Reactor. 10146_ Acquired SGEMP Prototype. 10146_ Adv. System Shield destroyed. 10146_ Critical hit (Blast). 10147_ Acquired 3 matter. 10147_ Cloaking Device destroyed. 10147_ Knocked back. 10151_ Acquired 8 matter. 10152_ System corrupted: Energy discharge (-5). 10152_ Slug penetrates Wall. 10154_ Cld. Impulse Thruster destroyed. Map ----- +----------------------------------------------------+ | ?????????????####+##"### ######### ## #????# | | ?????????????# # ######??# ###"######## | | ?????????????# # ## ""#??# ## # | | ?????????????# ! [ # ##""S#??###### # | | ?????????????# # ##"" ###?????# # | | ?????????????########### # #?????# # | | ???????????????????????# # """ #?????# / | | ???????????????????????# # """ #?????# # | | ???????????????????????+ " """ #?????# ! # | | ???????????????????????# # #?????# # | | ???????????????????????# # ! !#????#######"#### | | ???????????????????????# "#######????# | | ???????????????????????# ##??????????# "" "" | | ???????????????????????# #???????????# """" " " | | ???????????????????????# #???????????# """ "" | | ???????????????????????# #??##???????# " | | ???????????????????????# #? #???????# | | ?????????##????????????# # #??###### | | ?????????#"############# # ### #######+####+ | | ?????????# gg # ] + | | ?????????# g # ### | | ?????????# #####/######## = # ! #?# #### | | ?????????# # """ ! #???# ## #?# ## " | | ?????????# # "R" #???# ## #?# ## " | | ?????????# % # " " #???# ##! #?# ## | | ?????????# ##### # @ #???# ## ### ##[ | | ?????????# #???# # """"" #???# ###+### ### | | ????????## ##??# + """"" ##### | | ????????# #??#### """"" + ! | | ????????## ##?????#! #####+####"### ### | | ?????#####""####???########### ##?##+#### | | ?????#""" #?????????????# """ #?? ?#" | | ?????#"" % #?????????????# """ !!!# """ #T | | ?????#"* % ##?????????????# """ !!!# """ #" | | ?????#" % "#??????????????# !! # """ # | | ?????#""""" "#??????????????# # """ # | | ?????#""""""""#??????????????#] # """ # | | ?????##########??????????????# # """ # | | ?????????????????????????????########### """ ## | | ???????????????????????????????????????# ???? #? | | ?????????????????????????????????????????????###?? | | | | | | | | | | | | | | | | | | | +----------------------------------------------------+ Best States ------------- Heat Dissipation 166 Energy Generation 37 Energy Capacity 390 Matter Stores 300 Matter Capacity 300 Sight Range 22 Robot Scan Range 18 Terrain Scan Density 10 ECM Strength 1 Jamming Range 16 Cloak Strength 2 Armor Coverage 600 Evasion (%) 66 Recoil Reduction 1 Offensive Hacking 26 Defensive Hacking 38 Item Schematics ----------------- Imp. Flight Unit | -9/Materials | Scanalyzed Mni. Grenade Launcher | -9/Materials | Scanalyzed EMP Blaster | -9/Materials | Scanalyzed Xenon Bombardment Thruster | -8/Materials | Scanalyzed Imp. Cesium-ion Thruster | -8/Materials | Scanalyzed ECM Suite | -8/Materials | Hacked Combat Drone Bay | -6/Data Miner | Free Lgt. Regenerative Plating | -6/Data Miner | Free Cld. Nuclear Pulse Thruster | -6/Data Miner | Free Prc. Energy Filter | -6/Data Miner | Free Enh. Coil Gun | -6/Data Miner | Free Impulse Thruster | -6/Data Miner | Free Adv. Transmission Jammer | -6/Data Miner | Free Adv. Datajack | -6/Data Miner | Free Variable Charge Gun | -6/Data Miner | Free Imp. Cloaking Device | -6/Data Miner | Free Imp. Antigrav System | -6/Data Miner | Free Biometal Leg | -6/Data Miner | Free Assault Drone Bay | -5/Zhirov | Free Exp. Heat Sink | -5/Zhirov | Free Exp. Optical Array | -5/Zhirov | Free Imp. Arc Thrower | -5/Zhirov | Free Adv. Hacking Suite | -4/Factory | Hacked Cloaking Device | -4/Factory | Scanalyzed Adv. ECM Suite | -4/Factory | Scanalyzed Mic. Fission Core | -4/Factory | Scanalyzed Field Propulsion Array | -4/Factory | Scanalyzed Lgt. Quantum Reactor | -4/Factory | Scanalyzed Electron Diverter | -3/Testing | Scanalyzed Robot Schematics ------------------ B-60 Warrior | -6/Data Miner | Free H-66 Slayer | -6/Data Miner | Free R-10 Processor | -6/Data Miner | Free G-67 Veteran | -6/Data Miner | Free Fabricated ------------ Adv. Hacking Suite | x1 | -4/Factory Lgt. Quantum Reactor | x2 | -4/Factory | Preloaded Alien Tech Used ----------------- Transdimensional Reconstructor Integrated Dissipator Achievements -------------- Alien Tech Main Advantage Rampage Subspace Traveler The Science Guy Watch This! Challenges ------------ None Game ------ Seed TiamatSmallShield Manual? 0 Play Time 03:55:11 Cumulative 43.6 hours Start 2024.04.11 @ 20:51:56 End 2024.04.12 @ 17:25:53 Sessions 3 Manual Loads 0 Difficulty Rogue Special Mode None Game No. 25 Rogue 25 Adventurer 0 Explorer 0 Win Type - Total 1 Types 1/0/0/0/0/0/0/0/0 Lore% 41 Gallery% 32 Achievement% 34 Wizard Run 0 Options --------- Layout 0 ASCII 0 Keyboard 0 Movement Mouse Keybinds 0 Fullscreen 1 Font 18/SmallcapsGlow Map View 76x50 Zoom Use 0% Tactical HUD 1 Map Filters NONE Filters NONE Steam 1 RUN: 007a2ffa-e830-4c2f-9366-d4d65ab794f2